Workbook

Sheet Sheet1
A1: □ 수의계약 대상부지 세부내역
Q2: (2011년 4월 20일 현재)
A3: 일련 번호 | B3: 용도 | C3: 위치 | E3: 면적 | G3: 공급금액(원) | H3: 알선수수료(원) | J3: 공급단가 | L3: 건폐율 (%) | M3: 용적율 (%) | N3: 최고높이 /층수 | O3: 용도 지역 | P3: 토지사용 가능시기 | Q3: 납부계좌 (가상계좌)
C4: 블록명 | D4: 블록번호 | E4: ㎡ | F4: 3.3㎡ | H4: 0.4% | I4: 0.5% | J4: ㎡단가(원) | K4: 3.3㎡단가(원)
E5: =SUM(E6:E30) -> 31197 | F5: =SUM(F6:F30) -> 9437.050033 | G5: =SUM(G6:G30) -> 86256795000 | H5: =SUM(H6:H30) -> 324595580 | I5: =SUM(I6:I30) -> 411172270
A6: =ROW()-5 -> 1 | B6: 근생 용지 | C6: 근생1 | D6: 1-3-2-가 | E6: 599 | F6: =E6/3.3058 -> 181.1966846 | G6: =J6*E6 -> 1617300000 | H6: =G6*0.004 -> 6469200 | I6: =G6*0.005 -> 8086500 | J6: 2700000 | K6: =J6*3.3058 -> 8925660 | L6: 60 | M6: 240 | N6: 5층이하 | O6: 준주거 | P6: 2011.12월이후 | Q6: 79001299639721
A7: =ROW()-5 -> 2 | D7: 1-3-2-나 | E7: 649 | F7: 196.3216166 | G7: 1752300000 | H7: 7009200 | I7: 8761500 | J7: 2700000 | K7: =J7*3.3058 -> 8925660 | L7: 60 | M7: 240 | N7: 5층이하 | O7: 준주거 | P7: 2011.12월이후 | Q7: 79001299639598
A8: =ROW()-5 -> 3 | D8: 1-3-3-나 | E8: 723 | F8: 218.7065158 | G8: 1952100000 | H8: 7808400 | I8: 9760500 | J8: 2700000 | K8: 8925660 | L8: 60 | M8: 240 | N8: 5층이하 | O8: 준주거 | P8: 2011.12월이후 | Q8: 79001299639574
A9: 4 | D9: 1-3-4-가 | E9: 720 | F9: 217.7990199 | G9: 1944000000 | H9: 7776000 | I9: 9720000 | J9: 2700000 | K9: 8925660 | L9: 60 | M9: 240 | N9: 5층이하 | O9: 준주거 | P9: 2011.12월이후 | Q9: 79001299639562
A10: 5 | D10: 1-3-4-나 | E10: 720 | F10: 217.7990199 | G10: 1944000000 | H10: 7776000 | I10: 9720000 | J10: 2700000 | K10: 8925660 | L10: 60 | M10: 240 | N10: 5층이하 | O10: 준주거 | P10: 2011.12월이후 | Q10: 79001299639551
A11: 6 | C11: 근생10 | D11: 10-1-2 | E11: 2218 | F11: 670.9419808 | G11: 7585560000 | H11: 30000000 | I11: 37927800 | J11: 3420000 | K11: 11305836 | L11: 60 | M11: 240 | N11: 5층이하 | O11: 준주거 | P11: 2011.6월이후 | Q11: 79001299638121
A12: 7 | D12: 10-2-1 | E12: 2438 | F12: 737.4916813 | G12: 8337960000 | H12: 30000000 | I12: 40000000 | J12: 3420000 | K12: 11305836 | L12: 60 | M12: 240 | N12: 5층이하 | O12: 준주거 | P12: 2011.6월이후 | Q12: 79001299638132
A13: 8 | D13: 10-4-1 | E13: 1157 | F13: 349.990925 | G13: 3031340000 | H13: =G13*0.004 -> 12125360 | I13: =G13*0.005 -> 15156700 | J13: 2620000 | K13: 8661196 | L13: 60 | M13: 240 | N13: 5층이하 | O13: 준주거 | P13: 2011.6월이후 | Q13: 79001299638156
A14: 9 | D14: 10-4-2 | E14: 1004 | F14: 303.7086333 | G14: 2429680000 | H14: 9718720 | I14: 12148400 | J14: 2420000 | K14: 8000036 | L14: 60 | M14: 240 | N14: 5층이하 | O14: 준주거 | P14: 2011.6월이후 | Q14: 79001299638168
A15: 10 | D15: 10-4-3 | E15: 1048 | F15: 317.0185734 | G15: 2536160000 | H15: 10144640 | I15: 12680800 | J15: 2420000 | K15: 8000036 | L15: 60 | M15: 240 | N15: 5층이하 | O15: 준주거 | P15: 2011.6월이후 | Q15: 79001299638170
A16: 11 | D16: 10-4-4 | E16: 874 | F16: 264.3838103 | G16: 2115080000 | H16: 8460320 | I16: 10575400 | J16: 2420000 | K16: 8000036 | L16: 60 | M16: 240 | N16: 5층이하 | O16: 준주거 | P16: 2011.6월이후 | Q16: 79001299637942
A17: 12 | D17: 10-4-5 | E17: 939 | F17: 284.0462218 | G17: 2272380000 | H17: 9089520 | I17: 11361900 | J17: 2420000 | K17: 8000036 | L17: 60 | M17: 240 | N17: 5층이하 | O17: 준주거 | P17: 2011.6월이후 | Q17: 79001299638193
A18: 13 | D18: 10-4-6 | E18: 1121 | F18: 339.100974 | G18: 2432570000 | H18: 9730280 | I18: 12162850 | J18: 2170000 | K18: 7173586 | L18: 60 | M18: 240 | N18: 5층이하 | O18: 준주거 | P18: 2011.6월이후 | Q18: 79001299639689
A19: 14 | D19: 10-4-8 | E19: 1575 | F19: 476.435356 | G19: 3417750000 | H19: =G19*0.004 -> 13671000 | I19: =G19*0.005 -> 17088750 | J19: 2170000 | K19: 7173586 | L19: 60 | M19: 240 | N19: 5층이하 | O19: 준주거 | P19: 2011.6월이후 | Q19: 79001299639665
A20: 15 | C20: 근생13 | D20: 13-2 | E20: 1588 | F20: 480.3678383 | G20: 6177320000 | H20: 24709280 | I20: 30886600 | J20: 3890000 | K20: 12859562 | L20: 60 | M20: 240 | N20: 5층이하 | O20: 준주거 | P20: 2011.12월이후 | Q20: 79001299638091
A21: 16 | D21: 13-3 | E21: 1399 | F21: 423.1955956 | G21: 5498070000 | H21: 21992280 | I21: 27490350 | J21: 3930000 | K21: 12991794 | L21: 60 | M21: 240 | N21: 5층이하 | O21: 준주거 | P21: 2011.12월이후 | Q21: 79001299638107
A22: 17 | B22: 주차장용지 | D22: 주2 | E22: 1086 | F22: 328.5135217 | G22: =J22*E22 -> 2117700000 | H22: =G22*0.004 -> 8470800 | I22: =G22*0.005 -> 10588500 | J22: 1950000 | K22: 6446310 | L22: 80 | M22: 640 | N22: 8층이하 | O22: 준주거 | P22: 2011.9월이후 | Q22: 79001299639884
A23: 18 | D23: 주12 | E23: 1356 | F23: 410.1881542 | G23: 2603520000 | H23: =G23*0.004 -> 10414080 | I23: =G23*0.005 -> 13017600 | J23: 1920000 | K23: 6347136 | L23: 80 | M23: 240 | N23: 3층이하 | O23: 1종일반주거 | P23: 2011.4월이후 | Q23: 79001299639392
A24: 19 | D24: 주13 | E24: 1189 | F24: 359.6708815 | G24: 2092640000 | H24: =G24*0.004 -> 8370560 | I24: =G24*0.005 -> 10463200 | J24: 1760000 | K24: 5818208 | L24: 80 | M24: 240 | N24: 3층이하 | O24: 1종일반주거 | P24: 2011.12월이후 | Q24: 79001299639902
A25: 20 | D25: 주19 | E25: 1316 | F25: 398.0882086 | G25: 2395120000 | H25: 9580480 | I25: 11975600 | J25: 1820000 | K25: 6016556 | L25: 80 | M25: 240 | N25: 3층이하 | O25: 1종일반주거 | P25: 2011.9월이후 | Q25: 79001299639381
A26: 21 | D26: 주22 | E26: 3869 | F26: 1170.367233 | G26: 11684380000 | H26: 30000000 | I26: 40000000 | J26: 3020000 | K26: 9983516 | L26: 80 | M26: 640 | N26: 8층이하 | O26: 일반상업 | P26: 2011.9월이후 | Q26: 79001299639367
A27: 22 | B27: 종교용지 | D27: 종14 | E27: 771 | F27: 233.2264505 | G27: 1692345000 | H27: 6769380 | I27: =ROUNDDOWN(G27*0.005,-1) -> 8461720 | J27: 2195000 | K27: 7256231 | L27: 50 | M27: 150 | N27: 3층이하 | O27: 1종일반주거 | P27: 2011.9월이후 | Q27: 79001299637887
A28: 23 | B28: 위험물 | D28: 위1 | E28: 1419 | F28: 429.2455684 | G28: 4994880000 | H28: 19979520 | I28: =G28*0.005 -> 24974400 | J28: 3520000 | K28: 11636416 | L28: 50 | M28: 200 | N28: 5층이하 | O28: 2종일반주거 | P28: 2011.10월이후 | Q28: 79001299637838
A29: 24 | B29: 자동차관련 시설용지 | D29: 자3 | E29: 714 | F29: 215.9840281 | G29: 1827840000 | H29: 7311360 | I29: =G29*0.005 -> 9139200 | J29: 2560000 | K29: 8462848 | L29: 70 | M29: 210 | N29: 3층이하 | O29: 준주거 | P29: 2011.9월이후 | Q29: 79001299641696
A30: 25 | D30: 자4 | E30: 705 | F30: 213.2615403 | G30: 1804800000 | H30: 7219200 | I30: =G30*0.005 -> 9024000 | J30: 2560000 | K30: 8462848 | L30: 70 | M30: 210 | N30: 3층이하 | O30: 준주거 | P30: 2011.9월이후 | Q30: 79001299641702
